bitfinex-derivatives/quotes_BTCF0:USTF0_20250402
["timestamp","ask_amount","ask_price","bid_price","bid_amount"]
[1743566983160,0.31206243,84705.0,84704.0,0.47157213]
[1743566985868,0.31206243,84705.0,84704.0,0.1186676]
[1743566986171,0.31206243,84705.0,84704.0,0.1187076]
[1743566987965,0.31006243,84705.0,84704.0,0.1187076]
[1743566988164,0.31206243,84705.0,84704.0,0.1187076]
[1743566989170,0.67286243,84705.0,84704.0,0.1187076]
[1743566994972,0.67286243,84705.0,84704.0,0.00064]
[1743566995564,0.67286243,84705.0,84704.0,0.03114]
[1743566995768,0.67286243,84705.0,84704.0,0.1492076]
[1743567000371,0.67286243,84705.0,84704.0,0.1798076]
[1743567002983,0.31206243,84705.0,84704.0,0.1798076]
[1743567003177,0.67286243,84705.0,84704.0,0.1798076]
[1743567003383,0.67086243,84705.0,84704.0,0.1798076]
[1743567003881,0.67286243,84705.0,84704.0,0.1798076]
[1743567004283,0.67186243,84705.0,84704.0,0.1798076]
[1743567004483,0.67286243,84705.0,84704.0,0.1798076]
[1743567005079,0.31206243,84705.0,84704.0,0.1798076]
[1743567005284,0.67286243,84705.0,84704.0,0.06174]
[1743567005484,0.1180731,84700.0,84699.0,0.00017715]
[1743567005787,0.1180745,84699.0,84698.0,0.1502759]
[1743567005988,0.1828345,84699.0,84698.0,0.1508759]
[1743567006176,0.30796477,84699.0,84698.0,0.1508759]
[1743567006377,0.30796477,84699.0,84698.0,0.1502759]
[1743567007387,0.30796477,84699.0,84698.0,0.1508759]
[1743567007576,0.31669671,84699.0,84698.0,0.1508759]
[1743567007973,0.31769671,84699.0,84698.0,0.1508759]
[1743567008475,0.31869671,84699.0,84698.0,0.1508759]
[1743567008679,0.31869671,84699.0,84698.0,0.1839759]
[1743567009680,0.27786477,84699.0,84698.0,0.1839759]
[1743567010076,0.12789027,84699.0,84698.0,0.1839759]
[1743567010981,0.27706477,84699.0,84698.0,0.1839759]
[1743567011687,0.27706477,84699.0,84698.0,0.0659]
[1743567011880,0.1180843,84692.0,84691.0,0.0302]
[1743567012194,0.1190843,84692.0,84691.0,0.06298]
[1743567012488,0.25615462,84692.0,84691.0,0.1810657]
[1743567013375,0.25615462,84692.0,84691.0,0.1820657]
[1743567015190,0.25615462,84692.0,84691.0,0.2132657]
[1743567015383,0.13807032,84692.0,84691.0,0.2132657]
[1743567016689,0.001,84692.0,84691.0,0.2132657]
[1743567016880,0.1190843,84692.0,84691.0,0.2132657]
[1743567021397,0.1190843,84692.0,84691.0,0.49574013]
[1743567023693,0.1190843,84692.0,84691.0,0.28415443]
[1743567023888,0.30659799,84692.0,84691.0,0.28415443]
[1743567024093,0.30659799,84692.0,84691.0,0.43354013]
[1743567024495,0.30659799,84692.0,84691.0,0.49634013]
[1743567024496,0.24449799,84692.0,84691.0,0.49634013]
[1743567025296,0.24549799,84692.0,84691.0,0.49634013]
[1743567025901,0.24549799,84692.0,84691.0,0.49534013]
[1743567026101,0.24749799,84692.0,84691.0,0.49534013]
[1743567026693,0.24549799,84692.0,84691.0,0.49534013]
[1743567026893,0.24749799,84692.0,84691.0,0.49534013]
[1743567027793,0.12941369,84692.0,84691.0,0.49534013]
[1743567027994,0.118068,84704.0,84694.0,0.0590406]
[1743567028197,0.00072,84698.0,84697.0,0.1180773]
[1743567028400,8e-05,84698.0,84697.0,0.1186773]
[1743567028794,0.1180695,84703.0,84700.0,0.1180731]
[1743567029006,0.1415015,84701.0,84700.0,0.1187131]
[1743567029204,0.2596533,84701.0,84700.0,0.1187131]
[1743567029399,0.38301113,84701.0,84700.0,0.1187131]
[1743567029700,0.44471113,84701.0,84700.0,0.1815131]
[1743567030096,0.44471113,84701.0,84700.0,0.1187131]
[1743567030301,0.44471113,84701.0,84700.0,0.00064]
[1743567030492,0.1180731,84700.0,84699.0,0.1497732]
[1743567030802,0.1187131,84700.0,84699.0,0.1503732]
[1743567030998,0.31754152,84700.0,84699.0,0.1503732]
[1743567031907,0.31854152,84700.0,84699.0,0.1503732]
[1743567033605,0.31954152,84700.0,84699.0,0.1503732]
[1743567033901,0.31854152,84700.0,84699.0,0.1503732]
[1743567034104,0.31954152,84700.0,84699.0,0.1503732]
[1743567034890,0.31854152,84700.0,84699.0,0.1503732]
[1743567035095,0.31954152,84700.0,84699.0,0.1503732]
[1743567035296,0.31954152,84700.0,84699.0,0.1186732]
[1743567035496,0.31854152,84700.0,84699.0,0.1186732]
[1743567035699,0.31954152,84700.0,84699.0,0.1186732]
[1743567036704,0.31954152,84700.0,84699.0,0.1489732]
[1743567038508,0.31854152,84700.0,84699.0,0.1489732]
[1743567038697,0.31954152,84700.0,84699.0,0.1489732]
[1743567039308,0.31854152,84700.0,84699.0,0.1489732]
[1743567039610,0.31954152,84700.0,84699.0,0.1489732]
[1743567043510,0.31954152,84700.0,84699.0,0.0006]
[1743567043815,0.1180829,84693.0,84692.0,0.34151543]
[1743567044017,0.1187229,84693.0,84692.0,0.31617443]
[1743567044215,0.25550473,84693.0,84692.0,0.43425873]
[1743567044712,0.31760473,84693.0,84692.0,0.43425873]
[1743567044915,0.31760473,84693.0,84692.0,0.40115873]
[1743567045217,0.31760473,84693.0,84692.0,0.40215873]
[1743567045413,0.31760473,84693.0,84692.0,0.1196843]
[1743567047621,0.31760473,84693.0,84692.0,0.1511843]
[1743567047821,0.31760473,84693.0,84692.0,0.1813843]
[1743567049313,0.31760473,84693.0,84692.0,0.1196843]
[1743567052237,0.67840473,84693.0,84692.0,0.0016]
[1743567052446,0.67840473,84693.0,84692.0,0.1196843]
[1743567054195,0.67940473,84693.0,84692.0,0.1186843]
[1743567055444,0.82078134,84693.0,84692.0,0.1186843]
[1743567056350,0.82078134,84693.0,84692.0,0.0006]
[1743567056537,0.1180857,84691.0,84690.0,0.00017715]
[1743567056739,0.1187257,84691.0,84690.0,0.00017715]
[1743567056939,0.25316272,84691.0,84690.0,0.00017715]
[1743567057145,0.25316272,84691.0,84690.0,0.00081715]
[1743567057344,0.25316272,84691.0,84690.0,0.11890425]
[1743567057744,0.25416272,84691.0,84690.0,0.11890425]
[1743567060834,0.25416272,84691.0,84690.0,0.15200425]
[1743567064147,0.13607702,84691.0,84690.0,0.15200425]
[1743567066446,0.13507702,84691.0,84690.0,0.15200425]
[1743567066647,0.00064,84691.0,84690.0,0.15200425]
[1743567070457,0.00064,84691.0,84690.0,0.15300425]
[1743567070644,8e-05,84692.0,84691.0,0.1180857]
[1743567070846,0.1180833,84693.0,84692.0,0.1180843]
[1743567071154,0.1188833,84693.0,84692.0,0.1187643]
[1743567071345,0.1188833,84693.0,84692.0,0.1818643]
[1743567072450,0.0008,84693.0,84692.0,0.1818643]
[1743567072650,0.1188829,84693.0,84692.0,0.1818643]
[1743567073954,0.1198829,84693.0,84692.0,0.1818643]
[1743567075850,0.0018,84693.0,84692.0,0.1818643]
[1743567076454,0.04613332,84697.0,84696.0,0.1180787]
[1743567076655,0.04681332,84697.0,84696.0,0.4794787]
[1743567076856,0.14137661,84702.0,84701.0,0.1180718]
[1743567077159,0.14217661,84702.0,84701.0,0.1951118]
[1743567077749,0.14217661,84702.0,84701.0,0.2584118]
[1743567078857,0.0008,84702.0,84701.0,0.2584118]
[1743567079054,8e-05,84705.0,84704.0,0.1180676]
[1743567079254,8e-05,84705.0,84704.0,0.4796276]
[1743567080051,8e-05,84705.0,84704.0,0.4816276]
[1743567080551,8e-05,84705.0,84704.0,0.5437276]
[1743567083862,8e-05,84705.0,84704.0,0.5417276]
[1743567084063,8e-05,84705.0,84704.0,0.5437276]
[1743567085764,0.00017715,84715.0,84714.0,0.1180536]
[1743567085956,0.00017715,84715.0,84714.0,0.4796536]
[1743567086265,0.00017715,84715.0,84714.0,0.5558936]
[1743567086752,0.00017715,84715.0,84714.0,0.6209936]
[1743567087147,0.00177716,84715.0,84714.0,0.6209936]
[1743567087566,0.00177716,84715.0,84714.0,0.2601936]
[1743567088064,0.00177716,84715.0,84714.0,0.1839536]
[1743567088265,0.00077716,84715.0,84714.0,0.2601936]
[1743567090055,0.00017715,84715.0,84714.0,0.2601936]
[1743567090255,0.00017715,84715.0,84714.0,0.2611936]
[1743567091361,0.00017715,84715.0,84714.0,0.2731597]
[1743567094156,0.00017715,84715.0,84714.0,0.1969197]
[1743567094366,0.00017715,84715.0,84714.0,0.2080597]
[1743567094758,0.11822935,84715.0,84714.0,0.1318197]
[1743567095061,0.11906935,84715.0,84714.0,0.1318197]
[1743567097366,0.1180662,84705.0,84691.0,0.0762]
[1743567097665,0.1187062,84705.0,84704.0,0.28313774]
[1743567097972,0.24506116,84705.0,84704.0,0.28313774]
[1743567098472,0.24506116,84705.0,84704.0,0.40120534]
[1743567098771,0.30786116,84705.0,84704.0,0.23323774]
[1743567099462,0.30786116,84705.0,84704.0,0.00064]
[1743567099663,0.1180745,84699.0,84698.0,0.1180755]
[1743567099863,0.4795545,84699.0,84698.0,0.1187155]
[1743567100064,0.60282384,84699.0,84698.0,0.1187155]
[1743567100465,0.66462384,84699.0,84698.0,0.1187155]
[1743567101365,0.66562384,84699.0,84698.0,0.00064]
[1743567101565,0.1180857,84691.0,84690.0,0.00017715]
[1743567101764,0.1180969,84683.0,84677.0,0.35290453]
[1743567101964,0.4797369,84683.0,84682.0,0.23319774]
[1743567102158,0.49533969,84683.0,84682.0,0.35129594]
[1743567102566,0.67523659,84683.0,84682.0,0.1186982]
[1743567103266,0.67623659,84683.0,84682.0,0.1186982]
[1743567103473,0.67723659,84683.0,84682.0,0.1186982]
[1743567104063,0.67723659,84683.0,84682.0,0.0006]
[1743567104575,0.67723659,84683.0,84682.0,0.1186982]
[1743567106568,0.67623659,84683.0,84682.0,0.1186982]
[1743567106881,0.67723659,84683.0,84682.0,0.1186982]
[1743567108265,0.67723659,84683.0,84682.0,0.0006]
[1743567108468,0.1181024,84679.0,84675.0,0.1181074]
[1743567108675,0.1181024,84679.0,84671.0,0.1181128]
[1743567108972,0.2476031,84679.0,84675.0,0.1181073]
[1743567109177,0.3439031,84679.0,84677.0,0.1181049]
[1743567109367,0.3439031,84679.0,84678.0,0.00107237]
[1743567109777,0.3459031,84679.0,84678.0,0.00107237]
[1743567109977,0.3459031,84679.0,84678.0,0.11917617]
[1743567110167,0.3459031,84679.0,84678.0,0.11857617]
[1743567110774,0.3459031,84679.0,84678.0,0.14897617]
[1743567110976,0.3459031,84679.0,84678.0,0.14957617]
[1743567111780,0.3135031,84679.0,84678.0,0.14957617]
[1743567111976,0.3135031,84679.0,84678.0,0.18067617]
[1743567112977,0.3135031,84679.0,84678.0,0.14957617]
[1743567113184,0.3135031,84679.0,84678.0,0.11917617]
[1743567115673,0.3125031,84679.0,84678.0,0.11917617]
[1743567116076,0.3135031,84679.0,84678.0,0.00107237]
[1743567116378,0.3135031,84679.0,84678.0,0.00047237]
[1743567116882,0.3135031,84679.0,84678.0,0.00107237]
[1743567117967,0.3135031,84679.0,84678.0,0.00047237]
[1743567118172,0.3135031,84679.0,84678.0,0.00107237]
[1743567120277,0.3135031,84679.0,84678.0,0.00047237]
[1743567120477,0.3135031,84679.0,84678.0,0.00107237]
[1743567123883,0.6743031,84679.0,84678.0,0.00107237]
[1743567124384,0.6743031,84679.0,84678.0,0.00047237]
[1743567127787,0.6743031,84679.0,84678.0,0.14907617]
[1743567127975,0.6743031,84679.0,84678.0,0.14967617]
[1743567129187,0.1315007,84679.0,84678.0,0.14967617]
[1743567129390,0.00288001,84679.0,84678.0,0.14967617]
[1743567129688,0.002,84679.0,84678.0,0.18097617]
[1743567129888,0.1201024,84679.0,84678.0,0.18097617]
[1743567130084,0.1209424,84679.0,84678.0,0.18097617]
[1743567131185,0.00284,84679.0,84678.0,0.18097617]
[1743567131388,0.002,84679.0,84678.0,0.18097617]
[1743567133079,0.00284,84679.0,84678.0,0.18097617]
[1743567135290,0.1209424,84679.0,84678.0,0.18097617]
[1743567135487,0.1510424,84679.0,84678.0,0.18097617]
[1743567135886,0.1510424,84679.0,84678.0,0.39324509]
[1743567138792,0.1209424,84679.0,84678.0,0.39324509]
[1743567139689,0.1209424,84679.0,84678.0,0.18097617]
[1743567141296,0.25656136,84679.0,84678.0,0.18097617]
[1743567141494,0.28956136,84679.0,84678.0,0.18097617]
[1743567142507,0.25656136,84679.0,84678.0,0.18097617]
[1743567146708,0.25656136,84679.0,84678.0,0.00107237]
[1743567147002,0.28706136,84679.0,84678.0,0.11857617]
[1743567147200,0.28706136,84679.0,84678.0,0.11917617]
[1743567148509,0.28706136,84679.0,84678.0,0.15057617]
[1743567148907,0.27706136,84679.0,84678.0,0.15057617]
[1743567149412,0.27770136,84679.0,84678.0,0.15057617]
[1743567155404,0.63850136,84679.0,84678.0,0.15057617]
[1743567156103,0.63850136,84679.0,84678.0,0.11917617]
[1743567157912,0.63850136,84679.0,84678.0,0.00107237]
[1743567158211,0.63850136,84679.0,84678.0,0.00047237]
[1743567158414,0.64053994,84679.0,84678.0,0.00111237]
[1743567159504,0.67103994,84679.0,84678.0,0.00111237]
[1743567159911,0.31023994,84679.0,84678.0,0.00111237]
[1743567160117,0.67103994,84679.0,84678.0,0.00111237]
[1743567161411,0.67103994,84679.0,84678.0,0.00047237]
[1743567163111,0.31023994,84679.0,84678.0,0.00047237]
[1743567163312,0.31023994,84679.0,84678.0,0.00111237]
[1743567163613,0.81241655,84679.0,84678.0,0.00111237]
[1743567163920,0.81241655,84679.0,84678.0,0.00047237]
[1743567167133,0.45161655,84679.0,84678.0,0.00047237]
[1743567167420,0.67103994,84679.0,84678.0,0.00107237]
[1743567167615,0.67103994,84679.0,84678.0,0.00047237]
[1743567167814,0.65900136,84679.0,84678.0,0.00047237]
[1743567168422,0.67075461,84679.0,84678.0,0.00047237]
[1743567168618,0.65900136,84679.0,84678.0,0.00047237]
[1743567170320,0.0590532,84677.0,84670.0,0.0323]
[1743567170518,0.0590547,84674.0,84671.0,0.0312]
[1743567170723,0.4789122,84672.0,84671.0,0.0312]
[1743567171029,0.47951221,84672.0,84671.0,0.0318]
[1743567171213,0.67732753,84672.0,84671.0,0.0318]
[1743567172326,0.67732753,84672.0,84671.0,0.0328]
[1743567173329,0.67732753,84672.0,84671.0,0.0338]
[1743567173731,0.67732753,84672.0,84671.0,0.0332]
[1743567174126,0.65732653,84672.0,84671.0,0.0332]
[1743567175029,0.1181234,84664.0,84663.0,0.21244607]
[1743567175232,0.1181234,84664.0,84663.0,0.21312607]
[1743567175233,0.47952341,84664.0,84663.0,0.21312607]
[1743567175431,0.60908108,84664.0,84663.0,0.21312607]
[1743567175923,0.67278108,84664.0,84663.0,0.21312607]
[1743567176320,0.67278108,84664.0,84663.0,0.21512607]
[1743567176835,0.67278108,84664.0,84663.0,0.00385715]
[1743567177029,0.68434535,84664.0,84663.0,0.00385715]
[1743567178823,0.68434535,84664.0,84663.0,0.00285715]
[1743567179427,0.68534535,84664.0,84663.0,0.00285715]
[1743567179627,0.68634535,84664.0,84663.0,0.00085715]
[1743567180528,0.67478108,84664.0,84663.0,0.00085715]
[1743567180729,0.25028108,84664.0,84663.0,0.03295715]
[1743567180929,0.25028108,84664.0,84663.0,0.03287715]
[1743567181133,0.25028108,84664.0,84663.0,0.09657715]
[1743567182231,0.25028108,84664.0,84663.0,0.21470195]
[1743567182533,0.24928108,84664.0,84663.0,0.21470195]
[1743567182739,0.28118108,84664.0,84663.0,0.21470195]
[1743567183422,0.25028108,84664.0,84663.0,0.21470195]
[1743567183734,0.12072341,84664.0,84663.0,0.21470195]
[1743567184121,0.11972341,84664.0,84663.0,0.21470195]
[1743567184327,0.00260001,84664.0,84663.0,0.21470195]
[1743567184531,8e-05,84665.0,84664.0,0.13552439]
[1743567184839,0.00084,84665.0,84664.0,0.13628439]
[1743567185026,0.00084,84665.0,84664.0,0.20108439]
[1743567186724,0.00076,84665.0,84664.0,0.20108439]
[1743567186929,0.14125584,84671.0,84670.0,0.118115]
[1743567187230,0.14189584,84671.0,84670.0,0.555955]
[1743567187632,0.00064,84671.0,84670.0,0.555955]
[1743567187833,0.00025715,84672.0,84670.0,0.555955]
[1743567187834,0.00025715,84672.0,84671.0,0.1181136]
[1743567188135,0.00085716,84672.0,84671.0,0.1188736]
[1743567188334,0.00101715,84672.0,84671.0,0.2111736]
[1743567188532,0.00105715,84672.0,84671.0,0.2111736]
[1743567190046,0.00105715,84672.0,84671.0,0.2131736]
[1743567190235,0.00025715,84672.0,84671.0,0.2131736]
[1743567190639,0.00025715,84672.0,84671.0,0.2121736]
[1743567190837,0.00025715,84672.0,84671.0,0.6197736]
[1743567191143,0.14125584,84675.0,84674.0,0.1181094]
[1743567191339,0.14185585,84675.0,84674.0,0.1188694]
[1743567191737,0.00060001,84675.0,84674.0,0.1188694]
[1743567191943,8e-05,84676.0,84675.0,0.118108]
[1743567192143,8e-05,84676.0,84675.0,0.183108]
[1743567194335,0.1181866,84676.0,84675.0,0.183108]
[1743567195237,8e-05,84676.0,84675.0,0.1950309]
[1743567197242,0.0313,84679.0,84678.0,0.1181038]
[1743567197443,0.03206,84679.0,84678.0,0.1188638]
[1743567198044,0.03206,84679.0,84678.0,0.1490638]
[1743567199147,0.1851624,84679.0,84678.0,0.1490638]
[1743567199447,0.31074903,84679.0,84678.0,0.1188638]
[1743567202447,0.31074903,84679.0,84678.0,0.1497638]
[1743567202653,0.03406,84679.0,84678.0,0.1497638]
[1743567203353,0.1521624,84679.0,84678.0,0.1497638]
[1743567203552,0.03406,84679.0,84678.0,0.1497638]
[1743567204052,0.1521624,84679.0,84678.0,0.1497638]
[1743567204543,0.03406,84679.0,84678.0,0.1497638]
[1743567205055,0.1521624,84679.0,84678.0,0.1497638]
[1743567205254,0.03406,84679.0,84678.0,0.1497638]
[1743567205653,0.002,84679.0,84678.0,0.5105638]
[1743567212961,0.00017715,84683.0,84680.0,0.118101]
[1743567213260,0.00017715,84683.0,84682.0,0.1180982]
[1743567213452,0.0327,84689.0,84688.0,0.1180899]
[1743567213763,0.0335,84689.0,84688.0,0.9058899]
[1743567213956,8e-05,84690.0,84689.0,0.1180885]
[1743567214156,8e-05,84690.0,84689.0,0.1188485]
[1743567214351,0.1058155,84696.0,84695.0,0.1180801]
[1743567214551,0.1058155,84696.0,84695.0,0.4796401]
[1743567214861,0.1065755,84696.0,84695.0,0.4796401]
[1743567215058,0.1065755,84696.0,84695.0,0.52175926]
[1743567216470,0.1065755,84696.0,84695.0,0.52375926]
[1743567217067,0.1065755,84696.0,84695.0,0.54132765]
[1743567217263,0.1058155,84696.0,84695.0,0.54132765]
[1743567217460,0.1058155,84696.0,84695.0,0.54232765]
[1743567217662,0.0784955,84696.0,84695.0,0.54332765]
[1743567219068,0.0784955,84696.0,84695.0,0.54232765]
[1743567219364,0.0302,84697.0,84696.0,0.1180787]
[1743567219562,0.0302,84697.0,84696.0,0.16714709]
[1743567219762,0.00017715,84698.0,84697.0,0.1180773]
[1743567219963,0.0332,84703.0,84702.0,0.1180704]
[1743567220163,8e-05,84704.0,84703.0,0.118069]
[1743567220366,0.0622,84712.0,84711.0,0.1180578]
[1743567220564,0.06304,84712.0,84711.0,0.13439502]
[1743567220763,0.1810964,84712.0,84711.0,0.16709502]
[1743567221772,0.1810964,84712.0,84711.0,0.17887738]
[1743567222866,0.00084,84712.0,84711.0,0.16809502]
[1743567223071,8e-05,84717.0,84714.0,0.1180536]
[1743567223268,0.14221585,84715.0,84714.0,0.21075082]
[1743567223968,0.14221585,84715.0,84714.0,0.1951736]
[1743567224470,0.00096001,84715.0,84714.0,0.1951736]
[1743567224657,0.0319,84717.0,84716.0,0.1180508]
[1743567224862,0.0319,84717.0,84716.0,0.1190108]
[1743567225859,0.03286001,84717.0,84716.0,0.1951708]
[1743567226068,0.06536001,84717.0,84716.0,0.1951708]
[1743567226671,0.06536001,84717.0,84716.0,0.1971708]
[1743567227363,0.0644,84717.0,84716.0,0.1971708]
[1743567227767,0.06500001,84717.0,84716.0,0.1971708]
[1743567228074,0.0644,84717.0,84716.0,0.1971708]
[1743567228273,0.0644,84717.0,84716.0,0.1951708]
[1743567228481,0.0644,84717.0,84716.0,0.1961708]
[1743567229966,0.0644,84717.0,84716.0,0.21166441]
[1743567230166,0.0644,84717.0,84716.0,0.21266441]
[1743567230874,0.0644,84717.0,84716.0,0.57346441]
[1743567231065,0.06536001,84717.0,84716.0,0.57346441]
[1743567231665,0.06536001,84717.0,84716.0,0.57246441]
[1743567231976,0.06536001,84717.0,84716.0,0.57446441]
[1743567232676,0.0644,84717.0,84716.0,0.57545461]
[1743567232873,0.00025715,84720.0,84718.0,0.1180481]
[1743567233065,0.00025715,84720.0,84718.0,0.13449191]
[1743567233371,1e-07,84719.0,84718.0,0.13449191]
[1743567233961,1e-07,84719.0,84718.0,0.48444183]
[1743567234279,1e-07,84719.0,84718.0,0.4690081]
[1743567234667,1e-07,84719.0,84718.0,0.5461681]
[1743567234973,1e-07,84719.0,84718.0,0.5471681]
[1743567235471,1e-07,84719.0,84718.0,0.1971681]
[1743567235972,1e-07,84719.0,84718.0,0.1981681]
[1743567236174,1e-07,84719.0,84718.0,0.21360469]
[1743567236374,1e-07,84719.0,84718.0,0.21460469]
[1743567236570,1e-07,84719.0,84718.0,0.13844469]
[1743567236762,1e-07,84719.0,84718.0,0.21460469]
[1743567238179,1e-07,84719.0,84718.0,0.21260469]
[1743567238382,1e-07,84719.0,84718.0,0.21460469]
[1743567238772,1e-07,84719.0,84718.0,0.57540469]
[1743567240386,1e-07,84719.0,84718.0,0.49924469]
[1743567240774,1e-07,84719.0,84718.0,0.21460469]
[1743567241080,0.0604001,84719.0,84718.0,0.22995816]
[1743567241378,0.06100011,84719.0,84718.0,0.22995816]
[1743567242074,0.0604001,84719.0,84718.0,0.22995816]
[1743567242679,0.0604001,84719.0,84718.0,0.21460469]
[1743567242982,0.06136011,84719.0,84718.0,0.21460469]
[1743567243173,0.17940681,84719.0,84718.0,0.21260469]
[1743567243372,0.18040681,84719.0,84718.0,0.21060469]
[1743567243567,0.06236011,84719.0,84718.0,0.22597442]
[1743567243971,0.17940681,84719.0,84718.0,0.22597442]
[1743567244171,0.17940681,84719.0,84718.0,0.21060469]
[1743567244366,0.31362098,84719.0,84718.0,0.21060469]
[1743567244569,0.19557428,84719.0,84718.0,0.21060469]
[1743567244877,0.00096011,84719.0,84718.0,0.60390469]
[1743567245180,1e-07,84719.0,84718.0,0.66820469]
[1743567245875,1e-07,84719.0,84718.0,0.66920469]
[1743567246080,1e-07,84719.0,84718.0,1.01920469]
[1743567246472,1e-07,84719.0,84718.0,1.03367185]
[1743567246680,1e-07,84719.0,84718.0,1.03667185]
[1743567248073,1e-07,84719.0,84718.0,1.03867185]
[1743567251788,1e-07,84719.0,84718.0,1.04167185]
[1743567252291,1e-07,84719.0,84718.0,1.04163185]
[1743567253593,1e-07,84719.0,84718.0,1.04170516]
[1743567253987,1e-07,84719.0,84718.0,1.39460969]
[1743567255586,1e-07,84719.0,84718.0,1.39460952]
[1743567256286,1e-07,84719.0,84718.0,1.37909979]
[1743567257796,1e-07,84719.0,84718.0,1.36363263]
[1743567258089,1e-07,84719.0,84718.0,1.0107281]
[1743567261592,1e-07,84719.0,84718.0,1.40233299]
[1743567261782,1e-07,84719.0,84718.0,1.32621299]
[1743567261983,1e-07,84719.0,84718.0,1.40233299]
[1743567263698,1e-07,84719.0,84718.0,1.39833299]
[1743567263900,1e-07,84719.0,84718.0,1.40233299]
[1743567264100,1e-07,84719.0,84718.0,1.76313299]
[1743567266810,0.0310001,84719.0,84718.0,1.76313299]
[1743567267011,0.0310001,84719.0,84718.0,1.41313299]
[1743567270819,0.0310001,84719.0,84718.0,1.31633299]
[1743567273911,0.0310001,84719.0,84718.0,0.95553299]
[1743567274111,0.0310001,84719.0,84718.0,0.95253299]
[1743567274918,1e-07,84719.0,84718.0,0.98483299]
[1743567275410,1e-07,84719.0,84718.0,0.98283299]
[1743567275606,0.0324001,84719.0,84718.0,0.98283299]
[1743567276026,0.0324001,84719.0,84718.0,0.5912281]
[1743567276721,0.0324001,84719.0,84718.0,0.5922281]
[1743567277221,0.0324001,84719.0,84718.0,0.5599281]
[1743567278111,0.0324001,84719.0,84718.0,0.5904281]
[1743567282017,0.0324001,84719.0,84718.0,0.5884281]
[1743567282218,0.0324001,84719.0,84718.0,0.5904281]
[1743567283323,0.0324001,84719.0,84718.0,0.2296281]
[1743567283518,0.0324001,84719.0,84718.0,0.5904281]
[1743567286617,0.0324001,84719.0,84718.0,0.5884281]
[1743567286814,0.0324001,84719.0,84718.0,0.5904281]
[1743567290429,0.0324001,84719.0,84718.0,0.2296281]
[1743567290619,0.0324001,84719.0,84718.0,0.5904281]
[1743567291130,0.0324001,84719.0,84718.0,0.97575661]
[1743567291928,0.0324001,84719.0,84718.0,1.00615661]
[1743567292730,0.0324001,84719.0,84718.0,0.64535661]
[1743567292925,0.0324001,84719.0,84718.0,1.00615661]
[1743567296637,1e-07,84719.0,84718.0,1.00615661]
[1743567297733,1e-07,84719.0,84718.0,1.00415661]
[1743567298037,1e-07,84719.0,84718.0,1.00615661]
[1743567298638,1e-07,84719.0,84718.0,0.64535661]
[1743567298835,1e-07,84719.0,84718.0,1.00615661]
[1743567299226,0.0318001,84719.0,84718.0,1.00615661]
[1743567299423,0.0318001,84719.0,84718.0,0.93003661]
[1743567299627,0.0318001,84719.0,84718.0,1.00615661]
[1743567304041,1e-07,84719.0,84718.0,1.00615661]
[1743567306340,1e-07,84719.0,84718.0,0.93003661]
[1743567306528,1e-07,84719.0,84718.0,1.00615661]
[1743567308236,1e-07,84719.0,84718.0,0.97575661]
[1743567309142,0.0302001,84719.0,84718.0,0.97575661]
[1743567312335,0.0302001,84719.0,84718.0,0.97571661]
[1743567313034,0.0302001,84719.0,84718.0,0.86913661]
[1743567313246,0.28243949,84719.0,84718.0,0.75108851]
[1743567313446,0.28343949,84719.0,84718.0,0.75108851]
[1743567314141,0.28343949,84719.0,84718.0,0.86913661]
[1743567314643,0.28343949,84719.0,84718.0,1.22320635]
[1743567315437,0.28343949,84719.0,84718.0,1.22120635]
[1743567315647,0.28343949,84719.0,84718.0,0.74235825]
[1743567316238,0.31483949,84719.0,84718.0,0.74035825]
[1743567316547,0.31483949,84719.0,84718.0,0.85840635]
[1743567317353,0.31483949,84719.0,84718.0,0.1190081]
[1743567317846,0.31483949,84719.0,84718.0,0.00096]
[1743567318047,0.118055,84713.0,84712.0,0.21231158]
[1743567318345,0.11901501,84713.0,84712.0,0.21327158]
[1743567318551,0.24696556,84713.0,84712.0,0.21327158]
[1743567318950,0.30926556,84713.0,84712.0,0.21327158]
[1743567319150,0.30926556,84713.0,84712.0,0.21427158]
[1743567319653,0.30926556,84713.0,84712.0,0.21527158]
[1743567320249,0.30926556,84713.0,84712.0,0.33332798]
[1743567320854,0.30926556,84713.0,84712.0,0.21527158]
[1743567321554,0.30926556,84713.0,84712.0,0.00296]
[1743567322752,0.67006556,84713.0,84712.0,0.00296]
[1743567323048,0.30926556,84713.0,84712.0,0.002]
[1743567323248,0.30926556,84713.0,84712.0,0.00304]
[1743567323646,0.30926556,84713.0,84712.0,0.1210964]
[1743567324052,0.30926556,84713.0,84712.0,0.00304]
[1743567324252,0.30926556,84713.0,84712.0,0.002]
[1743567324451,0.30926556,84713.0,84712.0,0.00304]
[1743567324851,0.30926556,84713.0,84712.0,0.002]
[1743567325256,0.30926556,84713.0,84712.0,0.00296]
[1743567326154,0.31026556,84713.0,84712.0,0.00196]
[1743567327855,0.31126556,84713.0,84712.0,0.00096]
[1743567329957,0.1180676,84704.0,84702.0,0.0311]
[1743567330255,0.11866761,84704.0,84703.0,0.00113715]
[1743567330457,0.24256796,84704.0,84703.0,0.11920615]
[1743567330963,0.18520036,84704.0,84703.0,0.11920615]
[1743567331154,0.12450036,84704.0,84703.0,0.54320615]
[1743567331350,0.12490035,84704.0,84703.0,0.54320615]
[1743567331561,0.12590035,84704.0,84703.0,0.54320615]
[1743567331759,0.24296795,84704.0,84703.0,0.18240615]
[1743567331965,0.24392796,84704.0,84703.0,0.18240615]
[1743567332465,0.24292796,84704.0,84703.0,0.18240615]
[1743567333848,0.22292796,84704.0,84703.0,0.18240615]
[1743567335461,0.22292796,84704.0,84703.0,0.03263715]
[1743567335666,0.22292796,84704.0,84703.0,0.00113715]
[1743567335963,0.25312796,84704.0,84703.0,0.00113715]
[1743567336151,0.31792796,84704.0,84703.0,0.00113715]
[1743567336860,0.31792796,84704.0,84703.0,0.03323715]
[1743567337471,0.31892796,84704.0,84703.0,0.03323715]
[1743567337857,0.31892796,84704.0,84703.0,0.00113715]
[1743567338059,0.31892796,84704.0,84703.0,0.00017715]
[1743567338661,0.33080551,84704.0,84703.0,0.00017715]
[1743567340369,0.32980551,84704.0,84703.0,0.00017715]
[1743567340570,0.33080551,84704.0,84703.0,0.00017715]
[1743567340760,0.31892796,84704.0,84703.0,0.00017715]
[1743567341163,0.10486036,84704.0,84703.0,0.11824615]
[1743567341363,0.10586036,84704.0,84703.0,0.11824615]
[1743567341565,0.10490035,84704.0,84703.0,0.11928615]
[1743567341756,0.10586036,84704.0,84703.0,0.22569064]
[1743567342159,0.10686036,84704.0,84703.0,0.22569064]
[1743567342364,0.10586036,84704.0,84703.0,0.21408615]
[1743567342570,0.10686036,84704.0,84703.0,0.21408615]
[1743567342773,0.22392796,84704.0,84703.0,0.21408615]
[1743567342957,0.10586036,84704.0,84703.0,0.21508615]
[1743567344063,0.10486036,84704.0,84703.0,0.21508615]
[1743567344271,0.22292796,84704.0,84703.0,0.21508615]